[Event "German Rapid Championship 2022"]
[Site "Goettingen"]
[Date "2022.09.24"]
[Round "5.10"]
[White "Muckle, Julius"]
[Black "Cofmann, Veaceslav"]
[Result "1-0"]
[ECO "A58"]
[WhiteElo "2401"]
[BlackElo "2250"]
[Annotator "TA"]
[PlyCount "103"]
[EventDate "2022.09.24"]
[EventType "swiss"]
[EventCountry "GER"]
[SourceTitle "playchess.com"]
[Source "ChessBase"]
[SourceQuality "1"]
[TimeControl "900+10"]

{[%evp 24,103,83,53,102,94,92,72,113,88,114,110,130,129,130,133,127,116,125,113,116,63,193,60,62,45,52,46,53,48,41,33,91,91,81,81,147,147,133,126,140,140,372,343,371,359,593,598,748,421,462,454,677,653,683,665,660,647,873,856,817,777,2355,5156,5157,4914,5089,4810,6175,2382,2363,2385,6219,6087,5065,1720,1422,1231,1130,768,29987,29988]} 1. d4 {[%emt 0:00:01]} Nf6 {[%emt 0:00:03]} 2. c4 {[%emt 0:00:01]} c5 {[%emt 0:00:01]} 3. d5 {[%emt 0:00:01]} b5 {[%emt 0:00:00]} 4. cxb5 {[%emt 0:00:01]} a6 {[%emt 0:00:01]} 5. bxa6 {[%emt 0:00:01]} Bxa6 {[%emt 0:00:01]} 6. Nc3 {[%emt 0:00:04]} d6 {[%emt 0:00:02]} 7. Nf3 {[%emt 0:00:06]} Nbd7 {[%emt 0:00:01]} 8. e4 {[%emt 0:00:02]} Bxf1 {[%emt 0:00:02]} 9. Kxf1 {[%emt 0:00:01]} g6 {[%emt 0:00:01]} 10. g3 {[%emt 0:00:01]} Bg7 {[%emt 0:00:01]} 11. Kg2 {[%emt 0:00:01]} O-O {[%emt 0:00:02]} 12. a4 {[%emt 0:00:01] seems to push 12.Re1 aside.} Qb6 {[%emt 0:00:01]} 13. Qc2 {[%emt 0:00:12]} Rfb8 {[%emt 0:00:03] A59: Benko/Volga Gambit: White castles by hand.} (13... e6 $14 {should be considered.}) 14. Nb5 $16 {[%emt 0:00:20]} Ne8 {[%emt 0:00:04]} 15. Bg5 {[%emt 0:00:03]} Kf8 {[%emt 0:00:01] [#] White is better.} 16. h4 $146 {[%emt 0:00:31]} ({Predecessor:} 16. Nd2 h6 17. Nc4 Qb7 18. Bd2 Ra6 19. Qc1 Qa8 20. Bxh6 Rxa4 21. Bxg7+ Kxg7 22. Qc3+ {0-1 (50) Collin,M (2133)-Cofman,V (2320) Schaffhausen 2022}) 16... h5 {[%emt 0:00:06]} 17. Nd2 {[%emt 0:00:53]} Nc7 {[%emt 0:00:15]} 18. Nc4 {[%emt 0:00:02]} Qb7 {[%emt 0:00:01]} 19. Nxc7 {[%emt 0:01:00] White is much more active.} Qxc7 {[%emt 0:00:02]} 20. Bd2 {[%emt 0:00:03]} Ne5 {[%emt 0:00:12]} 21. Nxe5 {[%emt 0:00:16]} Bxe5 {[%emt 0:00:02]} 22. Bc3 {[%emt 0:00:01]} (22. Rab1 $16) 22... Bg7 {[%emt 0:00:24] [#]} ({Black should try} 22... Bxc3 $14 23. bxc3 (23. Qxc3 Kg8 $16) 23... Ra5) 23. a5 {[%emt 0:00:32]} (23. b4 $1 $18) 23... Kg8 {[%emt 0:00:38]} 24. Ra4 {[%emt 0:02:41]} Bxc3 {[%emt 0:02:31]} 25. Qxc3 {[%emt 0:00:03]} ({But not} 25. bxc3 Rxa5 26. Rha1 Rxa4 27. Rxa4 Qb6 $11) 25... Qb7 {[%emt 0:00:04] Against b4} 26. Ra2 $36 {[%emt 0:02:26][%mdl 2048] White is more active.} Ra6 {[%emt 0:01:03]} 27. Rha1 {[%emt 0:00:57]} (27. Re1 {keeps more tension.} Qa8 28. g4 hxg4 29. h5) 27... Rba8 {[%emt 0:00:24]} (27... Qb3 $14) 28. Qc4 {[%emt 0:00:18] White now steadily converts the win.} Rb8 {[%emt 0:00:25]} 29. Ra4 {[%emt 0:01:04][%cal Ba2a4,Ba4b4,Bb4b7][%mdl 32]} Qa8 {[%emt 0:00:28]} (29... Qb5 $142) 30. b4 {[%emt 0:00:17]} cxb4 {[%emt 0:00:01]} 31. Rxb4 {[%emt 0:00:02]} Rc8 {[%emt 0:00:02] [#]} 32. Qa2 {[%emt 0:00:44]} Rc5 $2 {[%emt 0:00:11]} (32... Qa7 $16 {might work better.} 33. Qa4 f6) 33. Qb2 $18 {[%emt 0:00:02] Rb8+ is the strong threat.} Rc8 {[%emt 0:00:08] Inhibits Rb8.} 34. Rb7 {[%emt 0:00:18]} Re8 $2 {[%emt 0:01:34]} (34... Rxa5 35. Rxa5 Qxa5 36. Rxe7 Rf8) 35. Qb5 {[%emt 0:00:16]} Kf8 {[%emt 0:00:24]} 36. Rb6 {[%emt 0:00:14]} Rxb6 {[%emt 0:00:59]} 37. Qxb6 {[%emt 0:00:01][%mdl 4096] Endgame KQR-KQR} Rb8 {[%emt 0:00:05]} (37... Qb8 $142 38. Qd4 f6) 38. Qd4 {[%emt 0:00:02][%cal Rd4h8]} f6 {[%emt 0:00:21]} 39. a6 {[%emt 0:00:01][%cal Ba5a6,Ba6a7][%mdl 32]} Kf7 {[%emt 0:00:43]} 40. a7 {[%emt 0:00:03]} Rc8 {[%emt 0:00:32]} 41. Qb6 {[%emt 0:00:33] Prevents Qb7.} f5 {[%emt 0:00:07]} 42. Qd4 {[%emt 0:01:08] Black must now prevent exf5.} Rc5 {[%emt 0:01:34]} 43. exf5 {[%emt 0:00:31]} gxf5 {[%emt 0:00:40]} 44. Kh2 {[%emt 0:00:52]} Rc8 {[%emt 0:00:33]} 45. Qd3 {[%emt 0:00:27]} Kg6 {[%emt 0:00:25]} 46. Qd2 {[%emt 0:00:01]} (46. Qe3 $142 Rf8 47. Qxe7) 46... Kf7 {[%emt 0:00:05]} 47. Ra5 {[%emt 0:00:45]} Rc7 {[%emt 0:01:23]} 48. Qg5 {[%emt 0:02:11]} Rxa7 {[%emt 0:00:07]} 49. Qxf5+ {[%emt 0:00:14]} (49. Rxa7 $142 Qxa7 50. Qxh5+ Kf6 51. Qh6+ Kf7 52. Qe6+ Kg7 53. Kg2) 49... Kg7 {[%emt 0:00:13]} 50. Qg5+ {[%emt 0:00:04]} Kf8 {[%emt 0:00:09]} 51. Qf4+ {[%emt 0:01:19]} Kg7 {[%emt 0:00:06]} 52. Qd4+ {[%emt 0:00:02] Weighted Error Value: White=0.28 (precise) /Black=0.71} 1-0

[Event "German Rapid Championship 2022"]
[Site "Goettingen"]
[Date "2022.09.24"]
[Round "5.11"]
[White "Hoepfl, Thomas"]
[Black "Kopylov, Michael"]
[Result "0-1"]
[ECO "B03"]
[WhiteElo "2279"]
[BlackElo "2371"]
[Annotator "TA"]
[PlyCount "120"]
[EventDate "2022.09.24"]
[EventType "swiss"]
[EventCountry "GER"]
[SourceTitle "playchess.com"]
[Source "ChessBase"]
[SourceQuality "1"]
[TimeControl "900+10"]

{[%evp 27,120,27,41,38,54,36,39,57,51,47,72,54,77,71,63,43,126,66,83,0,0,0,0,0,0,-7,0,0,0,0,0,0,0,0,0,-27,0,0,0,0,0,0,0,0,0,0,0,0,0,0,0,0,0,0,0,0,0,0,0,0,0,0,0,-7,0,-335,-334,-333,-325,-321,-290,-302,-309,-289,-88,-1222,-1243,-1120,-829,-1166,-1151,-941,-502,-2308,-1922,-2264,-2078,-2008,-1565,-29982,-29983,-29983,-29984,-29984,-29985]} 1. e4 {[%emt 0:00:02][%cal Be2e4,Be4e5][%mdl 32]} Nf6 {[%emt 0:00:02][%cal Bg8f6,Bf6d5,Bd5b6][%mdl 32]} 2. e5 {[%emt 0:00:01]} Nd5 {[%emt 0:00:01]} 3. c4 {[%emt 0:00:01]} Nb6 {[%emt 0:00:01]} 4. d4 {[%emt 0:00:01]} d6 {[%emt 0:00:02]} 5. f4 {[%emt 0:00:01]} dxe5 {[%emt 0:00:04]} 6. fxe5 {[%emt 0:00:02]} Nc6 {[%emt 0:00:02]} 7. Be3 {[%emt 0:00:04]} Bf5 {[%emt 0:00:04]} 8. Nc3 {[%emt 0:00:02]} e6 {[%emt 0:00:01]} 9. Nf3 {[%emt 0:00:02]} Be7 {[%emt 0:00:08]} 10. Be2 {[%emt 0:00:14]} O-O {[%emt 0:00:03]} 11. O-O {[%emt 0:00:03]} f6 {[%emt 0:00:10]} 12. exf6 {[%emt 0:00:03]} Bxf6 {[%emt 0:00:01]} 13. Qd2 {[%emt 0:00:20]} Qe7 {[%emt 0:00:02]} 14. Rad1 {[%emt 0:00:09]} Rad8 {[%emt 0:00:01]} 15. h3 {[%emt 0:00:27] 15.Kh1 is a critical line. B03: Alekhine's Defence: Four Pawns Attack.} h6 {[%emt 0:00:04]} 16. Qc1 {[%emt 0:01:11]} Kh8 {[%emt 0:00:22]} 17. Kh1 {[%emt 0:01:01] [#] White is slightly better.} Qe8 $146 {[%emt 0:00:27]} ({Predecessor:} 17... Rd7 18. d5 Ne5 19. b3 Nxf3 20. Bxf3 exd5 21. Rde1 Qd8 22. Nxd5 Bh4 23. Bc5 Bxe1 24. Bxf8 Qxf8 25. Qxe1 {½-½ (35) Kunzelmann,F (2505)-Pavlov,V (2431) ICCF email 2016}) 18. b3 {[%emt 0:02:49]} Qg6 {[%emt 0:00:50]} 19. Bf2 {[%emt 0:00:13]} Qe8 {[%emt 0:00:56]} 20. Rfe1 {[%emt 0:00:25]} Qf7 {[%emt 0:01:35]} 21. Bf1 {[%emt 0:01:05]} Rd7 {[%emt 0:00:21]} (21... Be7 $14) 22. a4 {[%emt 0:00:58]} (22. Bd3 $16) 22... Rfd8 {[%emt 0:00:47][%cal Rc6d4] [#]} 23. d5 {[%emt 0:00:42]} (23. Ne4 $1 $16) 23... exd5 $11 {[%emt 0:03:02]} 24. Bxb6 {[%emt 0:00:08]} axb6 {[%emt 0:00:31]} 25. Nxd5 {[%emt 0:00:17]} Be6 {[%emt 0:01:06]} 26. Nf4 {[%emt 0:01:18]} Bf5 {[%emt 0:01:18] Against Bd3} 27. Nd5 {[%emt 0:00:17]} Be6 {[%emt 0:02:23]} 28. Nf4 {[%emt 0:00:02]} Bb2 {[%emt 0:00:28] A strong pair of Bishops.} 29. Rxd7 {[%emt 0:01:06]} Bxd7 {[%emt 0:00:00]} 30. Qxb2 {[%emt 0:01:03]} Qxf4 {[%emt 0:00:02]} 31. Ne5 {[%emt 0:01:36] [#] Strongly threatening Ng6+.} Nxe5 {[%emt 0:00:53]} (31... Qg3 {looks sharper.} 32. Re2 Rf8 33. Kg1 Be8) 32. Qxe5 {[%emt 0:00:07]} Qxe5 {[%emt 0:00:40]} 33. Rxe5 {[%emt 0:00:01][%mdl 4096] Endgame KRB-KRB} Bc6 {[%emt 0:00:00]} 34. Re7 {[%emt 0:00:07]} Rd1 {[%emt 0:00:29]} 35. Kg1 {[%emt 0:00:02]} Rb1 {[%emt 0:00:01]} 36. Re3 {[%emt 0:00:32]} Kg8 {[%emt 0:00:15]} 37. Kf2 {[%emt 0:00:03]} Kf7 {[%emt 0:00:05]} 38. g4 {[%emt 0:00:58]} Kf6 {[%emt 0:00:07]} 39. h4 {[%emt 0:00:26]} Bd7 {[%emt 0:00:37]} 40. Be2 {[%emt 0:00:04]} Rb2 {[%emt 0:00:03] aiming for ...Bxg4.} 41. Kg3 {[%emt 0:00:10]} g5 {[%emt 0:00:12]} 42. hxg5+ {[%emt 0:00:20]} hxg5 {[%emt 0:00:08]} 43. Bf3 {[%emt 0:00:11]} c6 {[%emt 0:00:28]} 44. Be4 {[%emt 0:00:29]} Be6 {[%emt 0:00:11]} 45. Bh7 {[%emt 0:00:37]} Rd2 {[%emt 0:00:14]} 46. Bf5 $2 {[%emt 0:00:39][%mdl 8192]} (46. Rf3+ $11 Kg7 47. Bd3) 46... Bxf5 $19 {[%emt 0:00:31]} 47. gxf5 {[%emt 0:00:13]} Kxf5 {[%emt 0:00:04] KR-KR} 48. Re7 {[%emt 0:00:07]} Rd3+ {[%emt 0:00:02]} 49. Kg2 {[%emt 0:00:00]} Rxb3 {[%emt 0:00:02]} 50. Rxb7 {[%emt 0:00:02]} Kg4 $2 {[%emt 0:00:22]} (50... Rb2+ $19 {is more deadly.} 51. Kf1 Rb4) 51. a5 $2 {[%emt 0:00:06][%mdl 8192] Loses the game.} (51. c5 $17 Rg3+ 52. Kf2 bxc5 53. Rc7) 51... Rg3+ {[%emt 0:00:03]} 52. Kf2 {[%emt 0:00:06]} bxa5 {[%emt 0:00:05][%cal Bb6a5,Ba5a4,Ba4a3,Ba3a2][%mdl 32]} 53. Rc7 {[%emt 0:00:07]} Rf3+ {[%emt 0:00:15]} 54. Kg2 {[%emt 0:00:02]} Rf6 {[%emt 0:00:07]} 55. c5 {[%emt 0:00:09]} (55. Rc8 $142 c5 56. Rxc5) 55... a4 {[%emt 0:01:20]} 56. Ra7 {[%emt 0:00:02]} Rf4 {[%emt 0:00:01]} 57. Ra6 {[%emt 0:00:02]} Rc4 {[%emt 0:00:01]} 58. Rxc6 a3 {Black mates.} 59. Ra6 {[%emt 0:00:04]} Rc2+ {[%emt 0:00:01]} 60. Kf1 {[%emt 0:00:06]} a2 {[%emt 0:00:00] Weighted Error Value: White=0.69/Black=0.29 (precise)} 0-1

[Event "German Rapid Championship 2022"]
[Site "Goettingen"]
[Date "2022.09.24"]
[Round "5.12"]
[White "Becker, Thomas"]
[Black "Karsay, Pascal"]
[Result "0-1"]
[ECO "D37"]
[WhiteElo "2124"]
[BlackElo "2269"]
[Annotator "TA"]
[PlyCount "74"]
[EventDate "2022.09.24"]
[EventType "swiss"]
[EventCountry "GER"]
[SourceTitle "playchess.com"]
[Source "ChessBase"]
[SourceQuality "1"]
[TimeControl "900+10"]

{[%evp 23,74,-26,-17,-29,-14,-25,-16,-86,-98,-79,-87,-82,-54,-58,-55,-57,298,316,450,450,464,417,978,960,938,611,29987,123,125,131,131,153,132,55,48,42,43,-28,-31,-37,-44,-229,-241,-205,-175,-219,0,-669,-614,-1190,-1107,-1208,-1121]} 1. c4 {[%emt 0:00:01]} Nf6 {[%emt 0:00:02]} 2. Nf3 {[%emt 0:00:05]} e6 {[%emt 0:00:03]} 3. d4 {[%emt 0:00:03]} d5 {[%emt 0:00:02]} 4. Nc3 {[%emt 0:00:02]} dxc4 {[%emt 0:00:09]} 5. e3 {[%emt 0:00:07]} a6 {[%emt 0:00:03]} 6. Bxc4 {[%emt 0:00:12]} b5 {[%emt 0:00:02]} 7. Bb3 {[%emt 0:00:32]} Bb7 {[%emt 0:00:01]} 8. O-O {[%emt 0:00:03]} Nbd7 {[%emt 0:00:16]} 9. Qe2 {[%emt 0:00:28]} c5 {[%emt 0:00:06]} 10. Rd1 {[%emt 0:00:02]} Qc7 {[%emt 0:00:03]} 11. d5 {[%emt 0:01:14]} c4 {[%emt 0:00:09]} 12. dxe6 {[%emt 0:00:02]} fxe6 {[%emt 0:00:02]} 13. Bc2 {[%emt 0:00:09] D29: Queen's Gambit Accepted: Classical main line: 7 Qe2 with early ...Nbd7.} Bd6 {[%emt 0:00:22]} 14. h3 {[%emt 0:03:47]} O-O {[%emt 0:00:03]} 15. Nd4 {[%emt 0:00:04]} (15. e4 $11 {remains equal.}) 15... Nc5 $17 {[%emt 0:01:09] [#] Strongly threatening ...b4.} 16. a3 $146 {[%emt 0:04:11]} ({Predecessor:} 16. e4 Rad8 17. Be3 Bh2+ 18. Kh1 Be5 19. Rac1 b4 20. Na4 Bxd4 21. Bxd4 Nfxe4 22. Nxc5 Nxc5 {0-1 (47) Aleksandrov,Z-Petrukhina,I (2187) Tomsk 2011}) 16... Rad8 {[%emt 0:00:54]} 17. e4 {[%emt 0:00:37]} Bh2+ {[%emt 0:00:39]} 18. Kh1 {[%emt 0:00:01]} Be5 {[%emt 0:00:05]} 19. Be3 {[%emt 0:00:44]} Nfxe4 $2 {[%emt 0:02:10][%mdl 8192]} (19... Rd7 $15 {stays ahead.}) 20. Nxe4 $18 {[%emt 0:00:09]} Nxe4 {[%emt 0:00:34]} (20... Bxe4 $142 21. Bxe4 Bf4) 21. Nxe6 {[%emt 0:00:25]} Rxd1+ {[%emt 0:01:12]} 22. Rxd1 {[%emt 0:00:13]} Nxf2+ {[%emt 0:06:07]} (22... Qc6 $142 23. Nxf8 Kxf8 24. Bxe4 Qxe4) 23. Bxf2 {[%emt 0:00:32]} Qc6 {[%emt 0:00:18] [#]} 24. Qg4 $1 {[%emt 0:02:06]} Rxf2 {[%emt 0:01:21] [#]} (24... Re8 25. Rd8) 25. Rd8+ $2 {[%emt 0:00:05]} (25. Bxh7+ $1 {[%mdl 512] mates} Kf7 26. Nd8+ Ke7 27. Nxc6+ Bxc6 28. Qg5+ Bf6 29. Qc5+ Kf7 30. Qxc6) 25... Kf7 $16 {[%emt 0:00:01][%cal Rf2f1,Bg8f7,Bf7e7,Be7e8][%mdl 32]} 26. Rf8+ {[%emt 0:00:57][%mdl 64] Skewer} Ke7 {[%emt 0:00:01][%cal Rf2g2]} 27. Rxf2 {[%emt 0:00:10]} Qxe6 {[%emt 0:00:02] [#]} 28. Qg5+ {[%emt 0:00:44]} ({Much less strong is} 28. Bxh7 $6 Qxg4 29. hxg4 Kd6 $11) (28. Bf5 $1 $16 {[%cal Rf5e6]} Qd5 29. Qg5+ (29. Bxh7 Kd6 $16) 29... Bf6 30. Qe3+ Qe5 31. Qd2) 28... Bf6 $14 {[%emt 0:00:05]} 29. Qc5+ {[%emt 0:00:01]} Ke8 {[%emt 0:00:05]} 30. Kh2 {[%emt 0:01:47]} (30. Qh5+ $14 g6 31. Re2 (31. Qxh7 {is a self mate.} Qe1+ 32. Kh2 Be5+) 31... gxh5 32. Rxe6+ Kf7 33. Rb6) 30... Qe5+ $11 {[%emt 0:01:33]} 31. Qxe5+ {[%emt 0:00:01]} Bxe5+ $15 {[%emt 0:00:01][%mdl 4096] Endgame KRB-KB. A strong pair of Bishops.} 32. g3 $2 {[%emt 0:00:01]} (32. Kg1 $15 Bxb2 33. Bg6+ hxg6 34. Rxb2) 32... Bxb2 $19 {[%emt 0:00:04]} 33. a4 {[%emt 0:00:02]} b4 {[%emt 0:00:20][%cal Bb5b4,Bb4b3][%mdl 32] Hoping for ...Bf6.} 34. Bxh7 {[%emt 0:00:13] [#]} c3 {[%emt 0:00:06]} (34... Bf6 $1 $19 {...Bd5 is the strong threat.} 35. Bg8 c3) 35. Bc2 $2 {[%emt 0:00:01][%mdl 8192]} (35. Bg6+ $11 Kd8 36. Rf8+ Kd7 37. Rf7+ Kc8 38. Rf8+ Kd7 39. Rf7+ Kc8 40. Rf8+ Kd7) 35... Bd5 {[%emt 0:00:13] Black is clearly winning.} 36. Rf5 {[%emt 0:00:15]} b3 {[%emt 0:00:22]} 37. Bd3 {[%emt 0:00:08]} c2 {[%emt 0:00:06] Weighted Error Value: White=1.34/Black=0.84} 0-1

[Event "German Rapid Championship 2022"]
[Site "Goettingen"]
[Date "2022.09.24"]
[Round "5.13"]
[White "Philipp, Mathias"]
[Black "Langheinrich, Ferenc"]
[Result "0-1"]
[ECO "B06"]
[WhiteElo "2158"]
[BlackElo "2366"]
[Annotator "TA"]
[PlyCount "56"]
[EventDate "2022.09.24"]
[EventType "swiss"]
[EventCountry "GER"]
[SourceTitle "playchess.com"]
[Source "ChessBase"]
[SourceQuality "1"]
[TimeControl "900+10"]

{[%evp 9,56,25,86,73,77,62,61,50,74,70,75,74,83,77,79,75,71,33,31,27,31,25,25,23,60,52,58,-51,-14,-75,-66,-139,-110,-202,-189,-205,-195,-404,-416,-570,-551,-554,-545,-12835,-12833,-29978,-29979,-29987,-29988]} 1. e4 {[%emt 0:00:01]} g6 {[%emt 0:00:02]} 2. d4 {[%emt 0:00:01]} Bg7 {[%emt 0:00:01]} 3. Nc3 {[%emt 0:00:04]} d6 {[%emt 0:00:01]} 4. Be3 {[%emt 0:00:11]} a6 {[%emt 0:00:01]} 5. a4 {[%emt 0:00:04]} a5 {[%emt 0:00:32]} (5... Nc6 $11) 6. h3 {[%emt 0:00:11] B06: Modern Defence.} c6 {[%emt 0:00:17]} 7. Nf3 {[%emt 0:00:25] [#]} Na6 $146 {[%emt 0:00:08]} ({Predecessor:} 7... Nd7 8. Qd2 Qb6 9. Bc4 e6 10. O-O d5 11. exd5 cxd5 12. Nb5 Ne7 13. Bd3 O-O {0-1 (69) Nadimifar,A (2219)-Maghsoodloo,P (2576) Sharjah 2017}) 8. Bc4 {[%emt 0:00:19] White is slightly better.} Nb4 {[%emt 0:00:11]} 9. O-O {[%emt 0:00:32]} d5 {[%emt 0:00:21]} 10. exd5 {[%emt 0:00:10]} Nxd5 {[%emt 0:00:10]} 11. Nxd5 {[%emt 0:01:04]} cxd5 {[%emt 0:00:03]} 12. Bb5+ {[%emt 0:00:13]} Bd7 {[%emt 0:00:42]} 13. b3 {[%emt 0:00:19]} Nf6 {[%emt 0:00:15]} 14. c4 {[%emt 0:00:07]} O-O {[%emt 0:00:16]} 15. c5 {[%emt 0:00:54]} Ne4 {[%emt 0:00:21]} 16. Qc2 {[%emt 0:00:29]} Bf5 {[%emt 0:00:16][%cal Oe4g3]} 17. Bd3 {[%emt 0:00:12]} Rc8 {[%emt 0:00:22]} 18. g4 {[%emt 0:00:40]} ({White should play} 18. Rfe1 $14) 18... Be6 {[%emt 0:00:05]} (18... Bd7 $5 {[%cal Rf7f5]}) 19. b4 {[%emt 0:01:05]} ({Much weaker is} 19. Bxe4 dxe4 20. Ne5 f5 $17) (19. Bf4 $11) 19... axb4 {[%emt 0:00:21] And now ...f5 would win.} 20. a5 {[%emt 0:00:01]} ({Better is} 20. Rab1 $15) 20... Qd7 {[%emt 0:00:36][%cal Oe6g4] Threatens to win with ...Bxg4!} 21. Nh2 {[%emt 0:03:08]} (21. Qa4 $17 {was worth a try.}) 21... f5 $19 {[%emt 0:00:28][%cal Bf7f5,Bf5f4,Bf4e3][%mdl 32]} 22. f3 {[%emt 0:00:16]} f4 {[%emt 0:00:27]} 23. fxe4 $2 {[%emt 0:02:40]} (23. Bf2 {was the only chance.} b3 24. Qb2 Nxc5 25. Qe2 Nxd3 26. Qxd3) 23... dxe4 {[%emt 0:00:22]} ({Weaker is} 23... fxe3 24. e5 $17) 24. Bxe4 {[%emt 0:03:15] [#] Strongly threatening Bf2.} fxe3 {[%emt 0:00:07]} 25. Rxf8+ {[%emt 0:01:56]} Rxf8 {[%emt 0:00:10]} 26. Rf1 {[%emt 0:00:01]} Qxd4 {[%emt 0:00:42]} 27. Rxf8+ {[%emt 0:00:56]} Kxf8 {[%emt 0:00:03]} 28. Kf1 {[%emt 0:00:13]} b3 {[%emt 0:00:25] Weighted Error Value: White=0.83/Black=0.12 (very precise)} 0-1

[Event "German Rapid Championship 2022"]
[Site "Goettingen"]
[Date "2022.09.25"]
[Round "6.1"]
[White "Bluebaum, Matthias"]
[Black "Svane, Rasmus"]
[Result "1-0"]
[ECO "E49"]
[WhiteElo "2647"]
[BlackElo "2615"]
[Annotator "TA"]
[PlyCount "75"]
[EventDate "2022.09.24"]
[EventType "swiss"]
[EventCountry "GER"]
[SourceTitle "playchess.com"]
[Source "ChessBase"]
[SourceQuality "1"]
[TimeControl "900+10"]

{[%evp 23,75,13,14,0,13,0,0,0,32,41,25,22,57,39,50,45,76,9,49,22,46,38,80,56,91,59,72,63,88,97,93,80,173,176,204,175,173,179,147,145,251,255,218,195,363,338,631,226,923,915,1008,910,5802,3176]} 1. d4 {[%emt 0:00:02]} Nf6 {[%emt 0:00:02]} 2. c4 {[%emt 0:00:01]} e6 {[%emt 0:00:02]} 3. Nc3 {[%emt 0:00:01]} Bb4 {[%emt 0:00:04]} 4. e3 {[%emt 0:00:01]} O-O {[%emt 0:00:11]} 5. Bd3 {[%emt 0:00:03]} d5 {[%emt 0:01:07]} 6. a3 {[%emt 0:00:02]} Bxc3+ {[%emt 0:00:42]} 7. bxc3 {[%emt 0:00:02]} dxc4 {[%emt 0:00:02]} 8. Bxc4 {[%emt 0:00:01]} c5 {[%emt 0:00:01]} 9. Nf3 {[%emt 0:00:02]} Qc7 {[%emt 0:00:17]} 10. Be2 {[%emt 0:00:03]} b6 {[%emt 0:00:13]} 11. Bb2 $1 {[%emt 0:00:04][%mdl 4] now scores much better than the old 11.0-0.} Bb7 {[%emt 0:00:35]} 12. O-O {[%emt 0:00:06]} Nbd7 {[%emt 0:00:02]} 13. c4 {[%emt 0:00:19] E53: Nimzo-Indian: Rubinstein: Main Line (4...0-0 5 Nf3 d5 6 Bd3 c5 7 0-0).} Rfd8 {[%emt 0:00:53]} 14. Re1 {[%emt 0:00:13]} Rac8 {[%emt 0:00:06]} 15. Nd2 {[%emt 0:00:12] The position is equal.} Nf8 {[%emt 0:01:06]} 16. Bf1 {[%emt 0:00:56]} Ng6 {[%emt 0:00:15]} 17. a4 {[%emt 0:00:41][%cal Oa4a5] [#]} cxd4 $146 {[%emt 0:00:56]} ({Predecessor:} 17... Nh4 18. Qe2 cxd4 19. exd4 Qd6 20. Qd3 Qf4 21. Qe3 Qf5 22. Rec1 Qg6 23. f3 Nf5 {½-½ (77) Predke,A (2688)-Praggnanandhaa,R (2648) Paracin 2022}) 18. exd4 {[%emt 0:00:05][%cal Oa4a5]} Qf4 {[%emt 0:00:07] [#] White must now prevent ...Ng4.} 19. Qe2 {[%emt 0:01:49]} Qf5 {[%emt 0:02:16]} 20. Qd3 {[%emt 0:02:13]} (20. f3 $16) 20... Qh5 {[%emt 0:02:44]} 21. Qg3 {[%emt 0:00:37][%cal Oa4a5]} Qh6 {[%emt 0:01:00]} 22. Qe3 {[%emt 0:00:39]} Qh5 {[%emt 0:01:38]} 23. a5 {[%emt 0:00:52]} Nh4 {[%emt 0:01:10]} 24. Qf4 {[%emt 0:01:27]} Ng6 {[%emt 0:00:19]} 25. Qg3 {[%emt 0:00:11]} Nh4 {[%emt 0:01:34]} 26. d5 {[%emt 0:01:28] [#] And now Bxf6 would win.} Nf5 {[%emt 0:00:22]} 27. Qf4 {[%emt 0:00:01] aiming for axb6.} Qg6 {[%emt 0:00:35]} (27... exd5 $2 28. Re5 g6 29. Be2 $18 (29. Rxf5 Qxf5 30. Qxf5 gxf5 $18)) (27... Qh6 $16 28. Qxh6 Nxh6) 28. axb6 $18 {[%emt 0:00:24]} (28. dxe6 $2 Nh5 29. exf7+ Qxf7 $19) 28... axb6 {[%emt 0:00:04]} 29. Ra7 {[%emt 0:00:07]} (29. dxe6 $2 Nh5 30. Qe5 (30. exf7+ $2 Qxf7 31. Qe5 Rxd2 $19) 30... Rxd2 $19) 29... Nh5 {[%emt 0:01:02]} 30. Qe5 $36 {[%emt 0:00:47][%mdl 2048] White has strong initiative.} Ba8 {[%emt 0:00:12]} 31. Rc7 {[%emt 0:02:03] Strongly threatening Bd3. White is much more active.} h6 {[%emt 0:00:14]} (31... Rb8 $16) 32. Rxc8 {[%emt 0:01:22] The board is on fire.} Rxc8 {[%emt 0:00:01]} 33. Bd3 {[%emt 0:00:03] Threatens to win with Nf3.} ({Don't play} 33. dxe6 f6 34. Qc3 Nf4) 33... Bb7 $2 {[%emt 0:00:34]} (33... Qf6 34. g3 (34. dxe6 fxe6 35. Qxf6 Nxf6 $16) 34... Qxe5 35. Bxe5 (35. Rxe5 Rd8 $16) 35... Ne7) 34. f3 {[%emt 0:00:46]} Qg5 $2 {[%emt 0:00:09]} (34... b5 35. dxe6 fxe6 36. Qxe6+ Qxe6 37. Rxe6 Nh4) 35. Ne4 $2 {[%emt 0:00:11]} (35. dxe6 Nf4 36. exf7+ Kxf7 37. Qxf5+ Qxf5 38. Bxf5) 35... Qg6 {[%emt 0:00:04]} (35... Qf4 36. dxe6 Qxe5 37. exf7+ (37. Bxe5 fxe6 38. Nc3 Rd8 $16) 37... Kxf7 38. Bxe5 Rd8) 36. Nd6 {[%emt 0:00:10] White is clearly winning.} Ra8 {[%emt 0:00:19]} 37. Nxf5 {[%emt 0:00:01] White wants to mate with Ne7+.} exf5 {[%emt 0:00:09]} 38. Bxf5 {[%emt 0:00:02] Weighted Error Value: White=0.30/Black=0.53} 1-0